bitfinex-derivatives/quotes_SOLF0:USTF0_20240924
["timestamp","ask_amount","ask_price","bid_price","bid_amount"]
[1727201571682,3.3931,147.37,147.3,4.83665265]
[1727201571981,23.48,147.41,147.3,4.83665265]
[1727201572373,3.3925,147.39,147.3,4.83665265]
[1727201572574,23.48,147.41,147.3,4.83665265]
[1727201572782,3.37406653,147.4,147.3,4.83665265]
[1727201572981,3.3925,147.39,147.3,4.83665265]
[1727201573472,23.48,147.41,147.36,3.393]
[1727201573681,23.48,147.41,147.3,4.83665265]
[1727201573887,23.48,147.43,147.31,23.48]
[1727201574182,3.3918,147.42,147.31,23.48]
[1727201574990,23.48,147.45,147.34,23.48]
[1727201575293,23.48,147.45,147.39,3.3925]
[1727201575492,3.3919,147.42,147.35,2.7482]
[1727201575696,23.48,147.45,147.35,2.7482]
[1727201575997,3.3919,147.42,147.38,3.3926]
[1727201576196,23.48,147.45,147.35,2.7482]
[1727201576493,23.48,147.45,147.38,3.3927]
[1727201576697,3.392,147.42,147.38,3.3927]
[1727201576881,23.48,147.4,147.33,3.3937]
[1727201577082,26.88710192,147.4,147.31,1.4381]
[1727201577486,26.88710192,147.4,147.33,3.3937]
[1727201577687,3.3931,147.37,147.33,3.3937]
[1727201578195,26.88710192,147.4,147.33,3.3937]
[1727201578196,3.3932,147.36,147.33,3.3937]
[1727201578785,3.3932,147.36,147.31,1.4381]
[1727201578786,3.3935,147.35,147.31,1.4381]
[1727201579188,23.48,147.38,147.31,4.8323]
[1727201579592,23.48,147.35,147.31,3.3942]
[1727201579786,23.48,147.35,147.27,2.7613]
[1727201579992,23.48,147.35,147.31,3.3943]
[1727201580590,23.48,147.35,147.28,3.43484755]
[1727201580994,23.48,147.35,147.31,3.3942]
[1727201581992,26.8735,147.35,147.31,3.3942]
[1727201582192,26.8735,147.35,147.27,6.23145685]
[1727201582997,26.8735,147.35,147.32,3.3941]
[1727201583201,26.86062449,147.38,147.27,29.71145685]
[1727201583404,3.35766671,147.39,147.27,29.71145685]
[1727201583602,3.3924,147.4,147.3,23.48]
[1727201583798,90.39865066,147.46,147.32,23.48]
[1727201584103,90.39865066,147.46,147.33,2.7369]
[1727201584293,90.39865066,147.46,147.35,23.48]
[1727201584495,90.39865066,147.46,147.36,1.3287]
[1727201584706,3.3919,147.42,147.38,3.3926]
[1727201584905,3.3919,147.42,147.36,1.3287]
[1727201585201,3.3918,147.42,147.36,1.3287]
[1727201585403,3.3918,147.42,147.36,4.68398996]
[1727201585607,23.48,147.45,147.36,4.68398996]
[1727201585899,90.39865066,147.46,147.41,3.3919]
[1727201586099,90.39865066,147.46,147.36,4.68398996]
[1727201586300,3.3913,147.45,147.41,3.3918]
[1727201586506,3.3913,147.45,147.36,4.68398996]
[1727201587700,3.3913,147.45,147.41,3.3918]
[1727201588800,90.39865066,147.46,147.39,3.3923]
[1727201588995,23.48,147.45,147.39,3.3923]
[1727201589403,3.3917,147.43,147.39,3.3923]
[1727201589601,23.48,147.43,147.33,2.7369]
[1727201589904,3.3921,147.41,147.33,4.1622]
[1727201590101,23.48,147.43,147.33,4.1622]
[1727201590795,3.3921,147.41,147.37,3.3929]
[1727201591500,3.3923,147.4,147.37,3.3929]
[1727201592105,23.48,147.4,147.33,4.1622]
[1727201592497,23.48,147.4,147.34,3.3935]
[1727201593099,3.3928,147.38,147.34,3.3935]
[1727201593607,3.393,147.37,147.33,7.556]
[1727201593904,23.48,147.4,147.33,4.1622]
[1727201594801,23.48,147.43,147.33,4.1622]
[1727201595809,3.3923,147.4,147.33,4.1622]
[1727201596612,3.3923,147.4,147.35,3.3932]
[1727201598207,3.3925,147.39,147.35,3.3932]
[1727201598805,23.48,147.38,147.26,23.48]
[1727201599113,23.48,147.38,147.26,30.95911052]
[1727201599507,3.3933,147.36,147.32,3.394]
[1727201600108,23.48,147.38,147.32,3.394]
[1727201600306,23.48,147.38,147.26,30.95911052]
[1727201600709,23.48,147.35,147.26,7.47911052]
[1727201602209,3.31953024,147.41,147.26,7.47911052]
[1727201602398,110.77865066,147.46,147.26,30.95911052]
[1727201602399,23.48,147.38,147.26,30.95911052]
[1727201602610,3.34646203,147.37,147.26,30.95911052]
[1727201603110,3.3933,147.36,147.32,3.3939]
[1727201603312,3.34646203,147.37,147.32,3.3939]
[1727201603702,3.3936,147.34,147.26,30.95911052]
[1727201604311,3.34646203,147.37,147.3,3.3943]
[1727201604502,23.48,147.4,147.21,81.44]
[1727201604503,23.48,147.33,147.21,81.44]
[1727201604710,23.48,147.3,147.21,81.44]
[1727201605513,3.3949,147.29,147.26,3.3955]
[1727201605714,3.3949,147.29,147.21,81.44]
[1727201605910,26.8746,147.3,147.26,3.3953]
[1727201606213,23.48,147.3,147.21,81.44]
[1727201606507,3.3949,147.29,147.25,3.3957]
[1727201606710,23.48,147.3,147.25,3.3957]
[1727201607815,23.48,147.3,147.2,4.0611]
[1727201608009,3.37419963,147.32,147.21,23.48]
[1727201608209,6.76849963,147.32,147.28,3.3948]
[1727201608420,6.76849963,147.32,147.21,23.48]
[1727201608421,3.37419963,147.32,147.21,23.48]
[1727201608612,3.3943,147.31,147.27,3.3951]
[1727201608913,23.48,147.28,147.2,4.0611]
[1727201609301,3.3953,147.27,147.2,4.0611]
[1727201609610,23.48,147.28,147.2,4.0611]
[1727201610513,23.48,147.28,147.25,3.3955]
[1727201610713,23.48,147.28,147.2,4.0611]
[1727201610714,23.48,147.3,147.2,4.0611]
[1727201611226,23.48,147.3,147.2,11.14655485]
[1727201611414,23.48,147.3,147.2,4.0611]
[1727201611713,3.3949,147.29,147.25,3.3955]
[1727201612313,3.395,147.28,147.25,3.3955]
[1727201612513,3.395,147.28,147.24,3.3959]
[1727201612514,23.48,147.28,147.24,3.3959]
[1727201612917,26.8752,147.28,147.24,3.3959]
[1727201613120,26.8752,147.28,147.25,3.3957]
[1727201613518,3.3947,147.3,147.2,4.0611]
[1727201613722,23.48,147.31,147.26,3.3953]
[1727201614019,3.3951,147.28,147.2,4.0611]
[1727201614415,3.3951,147.28,147.25,3.3956]
[1727201614922,3.3949,147.29,147.25,3.3956]
[1727201615715,3.3949,147.29,147.26,3.3955]
[1727201615913,3.3949,147.29,147.2,4.0611]
[1727201616120,3.3949,147.29,147.25,3.3956]
[1727201616326,3.43998369,147.3,147.2,4.0611]
[1727201616827,23.48,147.31,147.2,4.0611]
[1727201617238,26.85862626,147.31,147.2,4.0611]
[1727201617613,3.37862626,147.31,147.21,23.48]
[1727201617813,3.3941,147.32,147.28,3.3948]
[1727201618119,23.48,147.31,147.2,4.0611]
[1727201618424,3.3951,147.28,147.2,4.0611]
[1727201618812,23.48,147.28,147.2,4.0611]
[1727201619417,23.48,147.28,147.25,3.3955]
[1727201620521,23.48,147.28,147.26,3.3954]
[1727201621321,23.48,147.28,147.21,1.4021]
[1727201621721,3.35858414,147.32,147.21,1.4021]
[1727201621921,23.48,147.33,147.21,1.4021]
[1727201622127,26.88546232,147.33,147.21,1.4021]
[1727201622325,26.88546232,147.33,147.27,3.395]
[1727201622326,3.3943,147.31,147.27,3.395]
[1727201622629,14.67,147.3,147.27,3.395]
[1727201623126,14.67,147.3,147.28,3.395]
[1727201623329,14.67,147.3,147.22,14.67]
[1727201623519,18.0646,147.3,147.22,14.67]
[1727201623917,14.67,147.29,147.21,1.4021]
[1727201624117,18.0649,147.29,147.21,1.4021]
[1727201624325,14.67,147.27,147.24,3.3958]
[1727201624626,14.67,147.27,147.21,1.4021]
[1727201624826,14.67,147.25,147.2,1.413]
[1727201625522,14.67,147.25,147.22,3.3962]
[1727201626430,6.74159781,147.26,147.22,3.3962]
[1727201627121,3.3957,147.26,147.22,3.3962]
[1727201627516,3.3959,147.25,147.2,1.413]
[1727201627723,3.3496351,147.26,147.2,1.413]
[1727201627929,26.8854,147.27,147.2,1.413]
[1727201628231,23.49,147.21,147.14,3.44193789]
[1727201628421,3.3969,147.2,147.14,3.398]
[1727201628621,23.49,147.17,147.12,2.7434]
[1727201628820,26.86568797,147.2,147.08,11.33348814]
[1727201628821,23.49,147.14,147.08,3.44431609]
[1727201629015,26.86568797,147.2,147.06,2.744]
[1727201629016,23.49,147.12,147.06,2.744]
[1727201629221,23.49,147.14,147.06,2.744]
[1727201629531,23.49,147.2,147.13,3.3983]
[1727201629532,3.3973,147.19,147.13,3.3983]
[1727201629731,23.49,147.2,147.07,23.49]
[1727201629732,26.84394441,147.2,147.07,23.49]
[1727201630027,26.84394441,147.2,147.12,3.3985]
[1727201630229,23.49,147.15,147.07,3.35428416]
[1727201630531,26.8881,147.15,147.06,2.744]
[1727201630739,23.49,147.15,147.06,2.744]
[1727201631034,3.3985,147.13,147.06,2.744]
[1727201631433,3.3985,147.13,147.06,6.19171352]
[1727201631636,26.8881,147.15,147.06,2.744]
[1727201631827,23.49,147.15,147.06,2.744]
[1727201632026,23.49,147.15,147.06,6.06021897]
[1727201632225,23.49,147.15,147.11,3.3988]
[1727201632428,23.49,147.15,147.06,2.744]
[1727201632631,23.49,147.17,147.11,3.3989]
[1727201632934,23.49,147.17,147.06,6.11768242]
[1727201632935,23.49,147.17,147.06,2.744]
[1727201633138,26.8877,147.17,147.11,3.3989]
[1727201633335,23.49,147.17,147.11,3.3989]
[1727201633538,23.49,147.17,147.06,2.744]
[1727201633840,23.49,147.17,147.06,6.0673594]
[1727201634042,23.49,147.14,147.09,3.3993]
[1727201634840,23.49,147.14,147.1,3.3991]
[1727201635138,23.49,147.14,147.06,2.744]
[1727201635338,23.49,147.14,147.11,3.3989]
[1727201635637,23.49,147.17,147.06,2.744]
[1727201635837,26.8876,147.17,147.06,2.744]
[1727201636147,26.8876,147.17,147.12,3.3987]
[1727201636338,3.3978,147.16,147.12,3.3987]
[1727201636637,23.49,147.17,147.06,29.68282692]
[1727201636840,23.49,147.17,147.13,3.3984]
[1727201637439,3.3969,147.2,147.08,23.49]
[1727201637642,3.3969,147.2,147.09,1.3647]
[1727201638140,3.3972,147.19,147.09,1.3647]
[1727201638537,3.3972,147.19,147.14,3.3981]
[1727201639647,3.3972,147.19,147.15,3.3979]
[1727201640342,23.49,147.24,147.11,23.49]
[1727201640535,23.49,147.24,147.13,23.49]
[1727201640736,3.3963,147.23,147.19,3.3969]
[1727201640943,23.49,147.24,147.13,23.49]
[1727201641133,23.49,147.24,147.12,2.7829]
[1727201641340,23.49,147.24,147.14,3.46598246]
[1727201641542,23.49,147.24,147.12,2.7829]
[1727201641732,90.53636654,147.26,147.03,81.56]
[1727201641733,3.3972,147.19,147.03,81.56]
[1727201641940,3.3898593,147.18,147.1,2.6639]
[1727201642237,23.49,147.19,147.13,3.3983]
[1727201642238,3.3976,147.17,147.13,3.3983]
[1727201642442,26.88223815,147.19,147.1,2.6639]
[1727201642837,3.3976,147.17,147.13,3.3984]
[1727201644046,26.88223815,147.19,147.1,1.3577]
[1727201644645,23.49,147.19,147.1,1.3577]
[1727201644847,26.83364588,147.19,147.1,4.68026748]
[1727201645045,26.83364588,147.19,147.1,1.3577]
[1727201645243,26.83364588,147.19,147.1,4.67652776]
[1727201645549,23.49,147.19,147.1,1.3577]
[1727201645846,3.3973,147.18,147.14,3.3981]
[1727201646038,23.49,147.19,147.1,4.82441652]
[1727201647557,3.3974,147.18,147.14,3.3981]
[1727201648254,26.8871,147.19,147.1,4.82441652]
[1727201648963,23.49,147.19,147.16,3.3977]
[1727201649461,26.8871,147.19,147.16,3.3977]
[1727201649758,26.8871,147.19,147.15,3.3979]
[1727201650361,26.8871,147.19,147.16,3.3977]
[1727201650362,23.49,147.19,147.16,3.3977]
[1727201651457,26.8872,147.19,147.16,3.3977]
[1727201652157,23.49,147.19,147.15,3.398]
[1727201653063,3.3974,147.18,147.15,3.398]
[1727201653265,3.3974,147.18,147.1,3.46671652]
[1727201653563,26.8872,147.19,147.09,1.3288]
[1727201653760,23.49,147.19,147.09,1.3288]
[1727201653965,26.85982389,147.21,147.09,4.77679942]
[1727201654157,23.49,147.23,147.1,23.49]
[1727201654465,14.68,147.24,147.14,14.68]
[1727201654665,14.68,147.22,147.18,3.3972]
[1727201655754,90.53636654,147.26,147.14,14.68]
[1727201655952,14.68,147.21,147.11,14.68]
[1727201656154,14.68,147.21,147.08,4.0349]
[1727201656155,14.68,147.17,147.08,18.7149]
[1727201656559,18.0777,147.17,147.08,18.7149]
[1727201656773,14.68,147.15,147.08,4.0349]
[1727201656958,14.68,147.13,147.08,2.6997]
[1727201657159,14.68,147.13,147.08,6.0992]
[1727201657366,14.68,147.13,147.08,1.3875]
[1727201657555,14.68,147.15,147.08,1.3875]
[1727201657966,18.0781,147.15,147.1,3.399]
[1727201658459,14.68,147.15,147.08,1.3875]
[1727201658659,3.3978,147.16,147.11,3.3988]
[1727201660558,3.398,147.15,147.11,3.3988]
[1727201661363,3.3983,147.14,147.1,3.3991]
[1727201661567,23.52,147.15,147.06,1.3352]
[1727201661774,23.52,147.15,147.04,1.4312]
[1727201661969,23.52,147.12,147.05,3.43295253]
[1727201662465,26.9189,147.12,147.05,3.43295253]
[1727201662661,23.52,147.12,146.95,3.47006049]
[1727201662863,3.3991,147.11,146.99,23.52]
[1727201663067,3.3991,147.11,147.01,23.52]
[1727201664067,3.3991,147.11,147.06,3.3999]
[1727201664268,23.52,147.12,147.01,23.52]
[1727201664458,26.84721338,147.14,147.01,23.52]
[1727201664653,26.84721338,147.14,147.03,23.52]
[1727201664654,23.52,147.14,147.03,23.52]
[1727201664959,26.96851513,147.14,147.04,2.6984]
[1727201665158,23.52,147.14,147.04,2.6984]
[1727201665464,26.9184,147.14,147.09,3.3993]
[1727201665764,30.29480888,147.14,147.09,3.3992]
[1727201666367,30.29480888,147.14,147.05,1.3769]
[1727201666970,26.9184,147.14,147.05,4.76475364]
[1727201667258,26.9184,147.14,147.05,1.3769]
[1727201667464,26.9184,147.14,147.05,4.7565926]
[1727201667662,26.9184,147.14,147.05,1.3769]
[1727201667861,26.9184,147.14,147.1,3.3991]
[1727201668864,3.3982,147.15,147.07,3.4320593]
[1727201669068,6.86256343,147.15,147.05,24.8969]
[1727201669263,3.3982,147.15,147.05,28.31433743]
[1727201669564,6.81597747,147.15,147.11,3.3988]
[1727201669758,3.3982,147.15,147.11,3.3988]
[1727201669955,3.35814891,147.18,147.08,23.52]
[1727201670159,23.52,147.2,147.08,23.52]
[1727201670670,3.3975,147.18,147.14,3.3982]
[1727201670870,26.84142554,147.2,147.08,23.52]
[1727201671766,26.84142554,147.2,147.05,3.41743743]
[1727201671969,23.52,147.17,147.06,4.1566]
[1727201672271,3.3985,147.14,147.09,3.3993]
[1727201672972,26.86250747,147.15,147.06,4.1566]
[1727201673164,23.52,147.15,147.06,4.1566]
[1727201673363,3.3985,147.13,147.09,3.3993]
[1727201674069,3.3987,147.12,147.08,3.3995]
[1727201675467,23.52,147.12,147.06,2.7275]
[1727201676063,3.399,147.11,147.07,3.3999]
[1727201676865,26.9188,147.12,147.08,3.3996]
[1727201677470,23.52,147.12,147.09,3.3994]
[1727201678080,23.52,147.12,147.1,3.3992]
[1727201678264,23.52,147.17,147.06,2.7275]
[1727201678471,23.52,147.17,147.13,3.3983]
[1727201678772,3.3977,147.17,147.13,3.3983]
[1727201679577,3.3977,147.17,147.14,3.3981]
[1727201679971,3.398,147.15,147.12,3.3987]
[1727201680278,14.7,147.16,147.12,3.3987]
[1727201680767,18.0979,147.16,147.13,3.3984]
[1727201681866,3.36030063,147.17,146.94,35.04235356]
[1727201682075,14.7,147.1,147.02,13.74280191]
[1727201682374,23.51,147.09,147.02,2.8299]
[1727201682572,26.91008159,147.09,147.02,2.8299]
[1727201683163,23.51,147.07,146.98,1.3697]
[1727201683572,3.4007,147.04,147.02,7.78143867]
[1727201683773,23.51,147.07,147.0,3.4015]
[1727201684173,3.4005,147.05,147.0,3.4015]
[1727201684374,3.4005,147.05,147.01,3.4012]
[1727201684580,23.51,147.07,147.01,3.4012]
[1727201684875,3.4003,147.05,147.01,3.4012]
[1727201685672,3.4002,147.06,147.01,3.4012]
[1727201686866,3.4002,147.06,146.97,2.7082]
[1727201687270,3.4002,147.06,147.01,3.4011]
[1727201687474,3.4002,147.06,146.97,2.7082]
[1727201687976,23.51,147.03,146.89,6.8076]
[1727201688173,23.51,147.07,146.96,1.4059]
[1727201688371,26.91008159,147.09,146.96,1.4059]
[1727201688680,3.4005,147.05,147.0,3.4015]
[1727201689174,3.4002,147.06,147.01,3.4012]
[1727201689375,23.51,147.07,147.01,3.4012]
[1727201690380,3.4004,147.05,147.01,3.4012]
[1727201690768,3.4004,147.05,147.02,3.401]
[1727201692277,26.9101,147.07,147.03,3.4007]
[1727201693680,26.9101,147.07,147.04,3.4005]
[1727201694176,3.4001,147.07,147.04,3.4005]
[1727201694876,3.4001,147.07,146.96,1.4059]
[1727201695078,3.4554724,147.14,147.0,23.51]
[1727201695285,23.51,147.15,147.01,2.7708]
[1727201695578,1.00353858,147.14,147.01,6.12341295]
[1727201695783,26.86159227,147.15,147.09,3.3992]
[1727201696075,23.51,147.1,146.98,7.79938361]
[1727201696272,23.51,147.1,146.99,4.1175]
[1727201696476,23.51,147.07,147.02,3.4009]
[1727201696674,23.51,147.07,146.99,4.1175]
[1727201697075,3.4001,147.06,147.02,3.4009]
[1727201697280,26.87960957,147.07,146.99,4.1175]
[1727201697483,26.87960957,147.07,147.0,3.4013]
[1727201697484,3.4004,147.05,147.0,3.4013]
[1727201697684,3.4004,147.05,146.99,4.1175]
[1727201698778,3.4004,147.05,147.01,3.4012]
[1727201700384,3.4002,147.06,147.02,3.401]
[1727201703780,3.4002,147.06,147.03,3.4008]
[1727201704291,3.4002,147.06,146.99,4.1175]
[1727201704292,14.7,147.04,147.02,3.401]
[1727201705289,14.7,147.04,146.99,4.1175]
[1727201705481,14.7,147.08,146.99,18.8175]
[1727201705886,18.0993,147.1,147.06,3.3999]
[1727201706190,14.7,147.1,146.99,18.8175]
[1727201706578,18.0994,147.1,146.99,18.8175]
[1727201706984,18.0994,147.1,147.01,14.7]
[1727201707189,14.7,147.1,147.01,14.7]
[1727201707381,14.7,147.05,146.98,3.36824921]
[1727201707683,14.7,147.05,146.98,3.4821144]
[1727201707888,18.1003,147.05,147.0,3.4013]
[1727201708086,14.7,147.05,146.95,19.41208115]
[1727201708593,3.4007,147.04,146.99,3.4016]
[1727201708778,3.4007,147.04,146.95,19.41208115]
[1727201709182,3.4012,147.02,146.95,19.41208115]
[1727201709382,14.7,147.05,146.95,19.41208115]
[1727201709779,3.4008,147.03,146.99,3.4016]
[1727201710092,3.41168961,147.07,146.97,14.7]
[1727201710093,14.7,147.07,146.97,14.7]
[1727201710292,18.15988977,147.07,146.97,14.7]
[1727201710492,18.15988977,147.07,147.02,3.4009]
[1727201710888,21.55988977,147.07,147.02,3.4009]
[1727201711791,14.7,147.05,146.95,4.71208115]
[1727201712090,14.7,147.03,146.95,4.71208115]
[1727201712997,18.02562253,147.03,146.95,4.69609925]
[1727201713383,14.7,147.03,146.95,4.69609925]
[1727201713887,14.7,147.02,146.95,1.3766]
[1727201714492,14.7,147.02,146.97,3.4019]
[1727201714885,3.4015,147.0,146.96,3.4022]
[1727201715081,14.7,147.02,146.95,1.3766]
[1727201715283,14.7,147.04,146.95,16.0766]
[1727201715484,18.1007,147.04,146.99,3.4015]
[1727201715791,18.03831787,147.03,146.94,3.38175261]
[1727201716101,14.7,147.04,146.95,14.7]
[1727201716296,14.7,147.0,146.85,226.0]
[1727201716498,18.1016,147.0,146.95,3.4025]
[1727201716997,14.7,147.0,146.95,3.4025]
[1727201717189,90.63336807,147.07,146.9,2.7492]
[1727201717190,14.7,146.98,146.9,2.7492]
[1727201717591,3.4016,147.0,146.96,3.4023]
[1727201717993,14.7,147.02,146.92,14.7]
[1727201718993,3.4016,147.0,146.92,14.7]
[1727201719401,14.7,147.02,146.96,3.4022]
[1727201719898,14.7,147.04,146.94,14.7]
[1727201720105,3.401,147.03,146.94,14.7]
[1727201720399,14.7,147.04,146.94,18.09765843]
[1727201720596,3.4009,147.03,146.99,3.4016]
[1727201720791,3.4009,147.03,146.94,18.09765843]
[1727201720989,14.7,147.06,146.96,14.7]
[1727201721192,14.7,147.08,146.98,14.7]
[1727201721600,3.4002,147.06,147.02,3.4009]
[1727201721810,14.7,147.08,146.98,14.7]
[1727201722102,18.0992,147.1,147.05,3.4002]
[1727201722393,14.7,147.15,147.05,14.7]
[1727201722897,14.7,147.15,147.05,18.07847033]
[1727201723093,156.93325716,147.22,147.09,14.7]
[1727201723297,3.3975,147.18,147.12,3.3985]
[1727201723499,81.66,147.27,147.11,14.7]
[1727201723698,14.7,147.22,147.11,14.7]
[1727201724000,3.3971,147.19,147.14,3.3981]
[1727201724294,23.5,147.23,147.14,3.3981]
[1727201724707,3.397,147.2,147.14,3.3981]
[1727201725506,3.3971,147.19,147.14,3.3981]
[1727201725890,3.3974,147.18,147.1,1.4331]
[1727201726089,23.5,147.2,147.1,1.4331]
[1727201726497,3.3976,147.17,147.12,3.3987]
[1727201726706,3.3976,147.17,147.1,1.4331]
[1727201727703,3.3974,147.18,147.1,1.4331]
[1727201728103,3.3971,147.19,147.1,1.4331]
[1727201728298,3.3971,147.19,147.1,24.9331]
[1727201728506,3.3969,147.2,147.1,24.9331]
[1727201728901,23.5,147.22,147.1,24.9331]
[1727201729802,23.5,147.25,147.12,23.5]
[1727201730002,23.5,147.25,147.13,1.4259]
[1727201730204,23.5,147.25,147.16,3.3977]
[1727201730205,3.3966,147.21,147.16,3.3977]
[1727201730395,26.9502736,147.22,147.14,1.4365]
[1727201730597,23.5,147.22,147.14,1.4365]
[1727201730797,23.5,147.19,147.13,1.4259]
[1727201731699,3.3977,147.17,147.13,1.4259]
[1727201731898,23.5,147.22,147.13,1.4259]
[1727201732104,3.3968,147.21,147.16,3.3976]
[1727201732606,23.5,147.24,147.16,3.3976]
[1727201732809,3.3965,147.22,147.17,3.3973]
[1727201733108,26.84704282,147.21,147.1,1.4365]
[1727201733309,3.3975,147.18,147.13,3.3984]
[1727201733505,23.5,147.21,147.1,26.3634]
[1727201734003,23.5,147.21,147.15,3.3978]
[1727201734205,23.5,147.21,147.1,26.3634]
[1727201735002,23.5,147.24,147.1,26.3634]
[1727201735208,3.3966,147.21,147.16,3.3976]
[1727201735607,3.3966,147.21,147.04,6.8008]
[1727201735608,43.88,147.2,147.0,2.7159]
[1727201735810,23.5,147.11,147.0,1.392]
[1727201736105,23.5,147.08,147.0,1.392]
[1727201736309,3.4007,147.04,147.0,1.392]
[1727201737103,23.5,147.08,147.0,4.7934]
[1727201737606,3.4003,147.05,147.0,4.7934]
[1727201738004,23.5,147.1,147.01,3.4012]
[1727201738201,3.4001,147.06,147.01,1.383]
[1727201738509,23.5,147.1,147.01,1.383]
[1727201738714,26.97428221,147.1,147.01,1.383]
[1727201739116,26.97428221,147.1,147.01,4.7842]
[1727201739414,23.5,147.1,147.01,4.7842]
[1727201739714,23.5,147.1,147.01,1.383]
[1727201740217,3.4003,147.06,147.01,1.383]
[1727201740714,3.4003,147.06,147.01,4.7841]
[1727201741921,23.5,147.1,147.01,1.383]
[1727201742114,23.5,147.13,147.01,24.883]
[1727201742515,3.3994,147.09,147.04,3.4005]
[1727201743415,23.5,147.08,147.01,1.383]
[1727201744813,23.5,147.06,147.01,1.383]
[1727201745804,3.4007,147.04,147.01,1.383]
[1727201746015,23.5,147.08,147.01,1.383]
[1727201746616,23.5,147.1,147.01,1.383]
[1727201746822,23.5,147.1,147.01,4.74240795]
[1727201747021,156.93325716,147.24,147.03,23.5]
[1727201747217,23.5,147.15,147.03,23.5]
[1727201747418,23.5,147.15,147.05,3.4002]
[1727201747419,3.3989,147.11,147.05,3.4002]
[1727201748224,23.5,147.13,147.05,3.4002]
[1727201748524,23.5,147.13,147.07,3.3997]
[1727201748721,3.3989,147.12,147.07,3.3997]
[1727201749218,23.5,147.13,147.07,3.3997]
[1727201749427,3.3991,147.11,147.06,3.4]
[1727201750528,23.5,147.13,147.06,3.4]
[1727201751225,23.5,147.13,147.07,3.3996]
[1727201751621,3.3988,147.12,147.07,3.3996]
[1727201752622,3.399,147.11,147.07,3.3996]
[1727201753021,23.5,147.11,147.01,28.2085102]
[1727201753416,3.3993,147.1,147.05,3.4002]
[1727201754027,3.3993,147.1,147.06,3.4001]
[1727201754329,26.899,147.11,147.01,28.2085102]
[1727201754529,23.5,147.11,147.01,28.2085102]
[1727201754726,23.5,147.11,147.07,3.3997]
[1727201755533,3.3989,147.12,147.01,28.2085102]
[1727201755831,23.5,147.13,147.01,28.2085102]
[1727201756224,26.899,147.11,147.06,3.4001]
[1727201756426,23.5,147.11,147.06,3.4001]
[1727201756625,23.5,147.11,147.01,4.7085102]
[1727201756826,3.3993,147.1,147.05,3.4001]
[1727201757230,23.5,147.11,147.01,4.7085102]
[1727201757433,3.3996,147.09,147.04,3.4006]
[1727201757734,3.3996,147.09,147.01,4.7085102]
[1727201758135,3.3993,147.1,147.05,3.4001]
[1727201758535,23.5,147.11,147.07,3.3997]
[1727201759435,26.899,147.11,147.07,3.3997]
[1727201759824,3.399,147.11,147.07,3.3997]
[1727201760522,23.5,147.14,147.07,3.3997]
[1727201760723,3.3992,147.1,147.06,3.4]
[1727201760926,23.5,147.14,147.06,3.4]
[1727201761129,3.3988,147.12,147.01,28.2085102]
[1727201761338,23.5,147.14,147.07,3.3998]
[1727201761837,3.3989,147.12,147.08,3.3996]
[1727201762436,3.3991,147.11,147.07,3.3997]
[1727201762730,23.5,147.14,147.01,28.2085102]